bitfinex/quotes_ETHUSD_20220308
["timestamp","ask_amount","ask_price","bid_price","bid_amount"]
[1646753485114,7.3492,2562.5,2561.5,0.00504343]
[1646753485310,0.3887,2562.5,2561.5,0.00504343]
[1646753485515,1.10055793,2562.7,2561.5,0.00504343]
[1646753485711,1.95254,2562.9,2561.7,0.00519881]
[1646753485964,0.30235038,2563.0,2561.7,0.00519881]
[1646753486264,0.00235038,2563.0,2561.9,1.3648728]
[1646753486464,0.00235038,2563.0,2561.9,1.1567]
[1646753486666,0.156235,2563.1,2562.7,1.06907121]
[1646753486865,0.22237789,2563.5,2562.1,0.13584958]
[1646753487163,0.22237789,2563.5,2562.2,0.00519822]
[1646753487563,0.00519536,2563.6,2562.2,0.00519822]
[1646753487769,0.00519536,2563.6,2562.7,0.3]
[1646753488171,0.00519536,2563.6,2562.7,0.00519209]
[1646753488172,0.00519026,2563.6,2562.7,0.00519209]
[1646753488569,0.00519026,2563.6,2563.1,1.19567166]
[1646753488772,0.00519026,2563.6,2562.7,0.00519209]
[1646753488971,1.95189,2563.6,2562.6,0.3]
[1646753489171,1.95189,2563.6,2562.5,0.3]
[1646753489172,2.34059,2563.6,2562.5,0.3]
[1646753489370,2.34552456,2563.6,2563.0,0.00493582]
[1646753489809,3.35100213,2563.6,2563.0,0.00493582]
[1646753490010,0.97603,2563.5,2563.0,0.00493582]
[1646753490211,0.97603,2563.3,2562.5,0.3]
[1646753490409,0.97609,2563.2,2562.1,0.13584958]
[1646753490610,0.97609,2563.2,2563.0,0.00493578]
[1646753490819,15.4,2563.1,2563.0,0.00493578]
[1646753491013,17.75087425,2563.1,2563.0,0.00493578]
[1646753491214,17.75087425,2563.1,2561.4,0.4132]
[1646753491215,11.9,2562.9,2561.4,0.4132]
[1646753491413,0.3,2562.0,2561.4,0.4132]
[1646753491629,0.3887,2562.3,2561.4,0.4132]
[1646753492014,0.3887,2562.3,2561.6,0.90226251]
[1646753492615,1.36517,2562.3,2561.4,0.4132]
[1646753492814,0.97647,2562.3,2561.4,0.4132]
[1646753493014,1.0,2562.4,2561.4,0.4132]
[1646753493215,1.0,2562.7,2561.4,0.4132]
[1646753493465,1.0,2562.7,2561.4,0.7132]
[1646753493661,0.3,2562.7,2561.4,0.7132]
[1646753493865,0.97624,2562.8,2562.3,1.10145016]
[1646753494066,7.6532,2563.1,2562.0,1.0562]
[1646753494264,0.97611,2563.2,2562.0,1.3562]
[1646753494461,0.156236,2562.8,2562.0,1.3562]
[1646753494665,0.97611,2563.2,2562.0,1.3562]
[1646753495266,3.5,2563.1,2562.3,0.00506113]
[1646753495467,0.9174294,2562.8,2562.3,0.00506113]
[1646753496268,0.9174294,2562.8,2561.4,3.55066222]
[1646753496565,1.3061294,2562.8,2562.4,0.00536403]
[1646753496966,0.97635,2562.7,2562.4,0.00536403]
[1646753497215,1.27635,2562.7,2562.4,0.00536403]
[1646753497414,2.64139,2562.7,2562.4,0.00536403]
[1646753497616,0.6887,2562.7,2562.4,0.00536403]
[1646753497813,1.3887,2562.7,2562.4,0.00536403]
[1646753498014,0.3887,2562.7,2562.4,0.00536403]
[1646753498617,0.3887,2562.7,2561.6,0.88607537]
[1646753498618,1.36497,2562.7,2561.6,0.88607537]
[1646753499017,0.3887,2562.7,2562.4,0.00536403]
[1646753499415,1.95239,2563.1,2562.4,0.00536403]
[1646753499617,1.95231,2563.2,2562.4,0.00536403]
[1646753499820,1.95231,2563.2,2561.7,0.468]
[1646753500020,1.95231,2563.2,2561.8,1.59418577]
[1646753500021,0.97802753,2563.0,2561.8,1.59418577]
[1646753500222,1.27802753,2563.0,2562.6,0.00500823]
[1646753500419,2.34279753,2563.0,2562.6,0.00500823]
[1646753500620,1.95409753,2563.0,2562.6,0.00500823]
[1646753501063,1.95409753,2563.0,2561.8,0.3]
[1646753501266,1.95409753,2563.0,2561.6,0.88607537]
[1646753501267,1.95409753,2563.0,2561.6,1.18607537]
[1646753501464,1.95254,2562.7,2561.7,1.59427526]
[1646753501863,1.95254,2562.7,2561.6,0.3]
[1646753501864,0.97627,2562.7,2561.6,0.3]
[1646753502060,0.97627,2562.7,2561.3,4.8918542]
[1646753502262,7.11708,2563.2,2561.5,0.3887]
[1646753502263,5.1644,2563.2,2561.5,0.3887]
[1646753502461,5.1644,2563.2,2561.6,1.98307408]
[1646753502462,0.156251,2562.7,2561.6,1.98307408]
[1646753502662,0.156251,2562.7,2562.1,0.00500888]
[1646753502862,5.1644,2563.2,2562.1,0.00500888]
[1646753503064,0.0050064,2563.3,2562.1,0.00500888]
[1646753503265,1.13864494,2563.3,2562.2,0.9681125]
[1646753503464,0.3887,2563.3,2562.2,0.9681125]
[1646753503664,0.99989605,2563.4,2562.2,0.9681125]
[1646753503867,0.97609,2563.2,2562.5,0.00501731]
[1646753504067,16.37609,2563.2,2562.5,0.00501731]
[1646753504267,16.4,2563.2,2562.5,0.00501731]
[1646753504465,0.3887,2563.1,2562.5,0.00501731]
[1646753504720,0.3887,2563.1,2561.2,2.928217]
[1646753504721,0.3887,2562.8,2561.2,2.928217]
[1646753504919,0.3887,2562.8,2561.0,7.20799265]
[1646753504920,2.3415,2562.4,2561.3,1.59439566]
[1646753505118,3.5,2562.8,2561.4,2.67599258]
[1646753505317,1.0,2562.8,2561.5,1.59439566]
[1646753505717,0.3,2562.9,2561.5,1.59439566]
[1646753505916,0.6887,2563.0,2561.5,1.89439566]
[1646753506118,1.32317446,2562.9,2561.8,0.9762154]
[1646753506319,1.32317446,2562.9,2561.5,0.3]
[1646753506524,4.82317446,2562.9,2561.6,1.5943352]
[1646753506718,0.3,2562.0,2561.7,1.5943352]
[1646753506921,0.3,2562.0,2561.2,0.6]
[1646753507119,0.3,2562.0,2561.3,1.59442023]
[1646753507323,0.9765,2562.1,2561.3,1.59442023]
[1646753507519,1.3652,2562.1,2561.3,1.59442023]
[1646753507921,1.3652,2562.1,2561.0,4.14578049]
[1646753508120,1.3652,2562.1,2561.1,1.59465]
[1646753508360,0.9765,2562.1,2561.1,1.59465]
[1646753508561,0.9765,2562.1,2561.2,0.9764297]
[1646753508762,2.25283,2562.3,2561.6,0.00502254]
[1646753509169,1.27642,2562.3,2561.6,0.00502254]
[1646753509566,0.3887,2562.2,2561.2,0.9764297]
[1646753509765,0.3887,2562.2,2561.8,0.00502226]
[1646753509969,2.92976,2562.1,2561.8,0.00502226]
[1646753510169,2.92976,2562.1,2561.8,2.226e-05]
[1646753510170,11.9,2561.9,2561.8,2.226e-05]
[1646753510367,18.4,2561.9,2561.8,2.226e-05]
[1646753510566,21.16789605,2561.9,2561.8,2.226e-05]
[1646753510766,21.16789605,2561.9,2560.4,2.55136026]
[1646753510767,0.3887,2561.6,2560.4,2.55136026]
[1646753510970,0.3887,2561.4,2560.5,1.59503772]
[1646753511168,1.3655,2561.4,2560.5,1.59503772]
[1646753511367,1.3655,2561.4,2560.7,0.93875809]
[1646753511567,1.3655,2561.4,2560.8,1.59503772]
[1646753511968,2.95382,2561.7,2560.8,1.59503772]
[1646753512216,0.97664,2561.8,2560.8,1.59503772]
[1646753512412,0.3,2562.0,2560.8,5.09503772]
[1646753512614,1.95328,2562.1,2560.9,1.59503772]
[1646753513014,1.95328,2562.1,2561.1,1.09803437]
[1646753513015,0.3887,2562.0,2561.1,1.09803437]
[1646753513213,0.3887,2562.0,2561.2,1.59503772]
[1646753513214,0.3,2562.0,2561.2,1.59503772]
[1646753513414,0.3,2562.1,2561.2,1.59503772]
[1646753513613,1.3,2562.2,2561.2,1.59503772]
[1646753513813,0.3,2562.2,2561.2,1.59503772]
[1646753514215,13.39256001,2562.2,2561.2,1.59503772]
[1646753514421,0.3887,2561.9,2561.3,1.59503772]
[1646753514615,0.3,2562.0,2561.6,0.00536012]
[1646753514818,12.9,2562.1,2561.6,0.00536012]
[1646753515021,0.99989605,2561.8,2561.6,0.00536012]
[1646753515219,1.38859605,2561.8,2561.6,0.00536012]
[1646753515418,0.97672,2561.7,2561.6,0.00536012]
[1646753515859,0.3887,2561.6,2560.7,8.18075349]
[1646753516061,0.3887,2561.6,2560.8,1.59483755]
[1646753516263,1.97663605,2561.8,2561.1,1.01637252]
[1646753516461,0.97664,2561.8,2561.1,1.01637252]
[1646753517166,0.97664,2561.8,2561.3,0.00536044]
[1646753517763,1.95326,2561.8,2561.3,0.00536044]
[1646753517970,0.00235038,2562.4,2561.4,1.59460093]
[1646753518164,0.00235038,2562.4,2561.5,1.59460093]
[1646753518363,0.39105038,2562.4,2561.5,1.59460093]
[1646753518563,0.00235038,2562.4,2561.5,1.59460093]
[1646753518770,3.97878038,2562.4,2561.5,1.59460093]
[1646753518965,13.03508165,2562.3,2561.4,0.00536031]
[1646753519166,14.9,2561.8,2561.4,0.00536031]
[1646753519366,1.95368,2562.0,2560.3,2.94164864]
[1646753519368,3.0,2561.5,2560.3,2.94164864]
[1646753519629,0.3887,2561.4,2560.7,0.02009166]
[1646753519823,1.21790316,2561.5,2560.7,0.02009166]
[1646753520020,1.95371,2561.5,2560.8,1.59510958]
[1646753520220,0.97678,2561.4,2560.8,1.59510958]
[1646753520421,0.3887,2561.3,2560.8,1.59510958]
[1646753520622,0.3887,2561.3,2561.0,0.00502166]
[1646753521023,3.3887,2561.2,2561.0,0.00502166]
[1646753521220,0.3,2561.1,2561.0,0.00502166]
[1646753521419,0.3,2561.1,2560.6,0.02008966]
[1646753521629,1.977,2561.2,2560.1,2.66100137]
[1646753521820,0.977,2561.2,2560.2,1.59521446]
[1646753523021,0.977,2561.2,2560.7,1.06228562]
[1646753523231,3.93053,2561.4,2560.7,1.06228562]
[1646753523232,0.97679,2561.4,2560.7,1.06228562]
[1646753523468,10.24738867,2561.9,2560.8,1.59505492]
[1646753523469,0.9767,2561.6,2560.8,1.59505492]
[1646753523668,0.3887,2561.8,2560.8,1.59505492]
[1646753523868,0.3887,2561.8,2560.6,0.00502166]
[1646753524073,0.3887,2561.7,2560.7,1.59503439]
[1646753524275,0.97688,2561.3,2561.1,0.0050211]
[1646753525173,0.97689,2561.5,2561.1,0.0050211]
[1646753525373,0.97689,2561.5,2561.1,0.0100422]
[1646753525575,0.97689,2561.5,2561.1,0.0050211]
[1646753525576,1.95363,2561.5,2561.1,0.0050211]
[1646753526376,1.22903496,2561.2,2560.1,0.10955273]
[1646753526575,1.22903496,2561.2,2560.7,0.01931871]
[1646753526576,0.3887,2561.0,2560.7,0.01931871]
[1646753526974,1.68859605,2561.0,2560.7,0.01931871]
[1646753527622,0.6887,2561.0,2560.0,1.18427335]
[1646753527817,0.9887,2561.0,2560.7,0.00482924]
[1646753528018,0.97709,2560.8,2560.7,0.00482924]
[1646753528219,0.97697,2561.1,2560.7,0.00482924]
[1646753528220,1.99989605,2561.1,2560.7,0.00482924]
[1646753528419,1.0,2561.2,2560.7,0.00482924]
[1646753528717,0.97678,2561.5,2560.7,0.00482924]
[1646753528919,11.9,2561.4,2560.7,0.00482924]
[1646753529121,0.3887,2561.2,2560.8,0.00482918]
[1646753529321,0.9769,2561.1,2560.8,0.00482918]
[1646753530130,0.9769,2561.1,2560.8,0.0095914]
[1646753530131,1.6656,2561.1,2560.8,0.0095914]
[1646753530325,0.9769,2561.1,2560.8,0.00476222]
[1646753530526,1.0,2561.3,2560.8,0.00476222]
[1646753530726,8.66349605,2561.7,2560.8,0.00476222]
[1646753530969,12.89989605,2561.8,2560.8,0.00476222]
[1646753531267,15.2887,2561.7,2559.9,0.3]
[1646753531468,1.277,2561.0,2560.9,0.00476211]
[1646753531667,0.977,2561.0,2560.9,0.00476211]
[1646753532567,0.977,2561.0,2559.9,3.5]
[1646753532770,1.97665605,2561.5,2560.0,1.59528095]
[1646753532976,1.97665605,2561.5,2560.1,3.8887]
[1646753533169,0.97676,2561.5,2560.2,1.59528095]
[1646753533368,0.97676,2561.5,2560.2,1.89528095]
[1646753533569,0.97676,2561.5,2560.3,1.44528095]
[1646753533570,1.36546,2561.5,2560.3,1.44528095]
[1646753533769,1.36546,2561.5,2560.7,0.0047285]
[1646753533969,0.97687,2561.2,2560.7,0.0047285]
[1646753534369,1.95374,2561.4,2560.7,0.0047285]
[1646753534370,2.95374,2561.4,2560.7,0.0047285]
[1646753534624,1.95374,2561.4,2560.7,0.0047285]
[1646753534816,2.95374,2561.4,2560.4,1.10013497]
[1646753535020,1.95374,2561.4,2560.8,0.00472833]
[1646753535217,2.95374,2561.4,2560.8,0.00472833]
[1646753535422,1.95374,2561.4,2560.8,0.00472833]
[1646753535618,3.34244,2561.4,2560.8,0.00472833]
[1646753535816,2.34244,2561.4,2560.8,0.00472833]
[1646753536017,3.34244,2561.4,2560.4,1.10013497]
[1646753536224,3.34244,2561.4,2561.0,2.817e-05]
[1646753536225,3.8887,2561.3,2561.0,2.817e-05]
[1646753536420,3.8887,2561.3,2559.9,2.55198575]
[1646753536421,8.8567,2561.2,2559.9,2.55198575]
[1646753536622,0.3887,2560.2,2559.3,0.3905]
[1646753536821,12.2887,2560.0,2559.3,0.3905]
[1646753537019,3.968,2560.1,2559.3,0.3905]
[1646753537020,12.2887,2559.8,2559.3,0.3905]
[1646753537218,12.2887,2559.8,2558.2,0.017782]
[1646753537219,12.2887,2559.4,2558.2,0.017782]
[1646753537420,1.29989605,2559.7,2558.2,0.017782]
[1646753537421,0.3,2559.0,2558.2,0.017782]
[1646753537619,0.3887,2558.9,2558.2,0.016822]
[1646753537819,0.3887,2558.7,2558.2,0.016822]
[1646753538023,11.9,2558.5,2558.2,0.016822]
[1646753538220,3.968,2558.6,2558.1,0.0651409]
[1646753538221,12.2887,2558.4,2558.1,0.0651409]
[1646753538473,13.28859605,2558.3,2558.1,0.0651409]
[1646753538673,12.368,2558.2,2558.1,0.0651409]
[1646753538974,13.36789605,2558.2,2558.1,0.0651409]
[1646753539173,1.46789605,2558.2,2558.1,0.0651409]
[1646753539374,3.27812605,2558.3,2558.2,0.23488203]
[1646753539574,0.97823,2558.3,2558.2,0.23488203]
[1646753539779,0.99989605,2558.8,2558.2,0.23488203]
[1646753539780,1.76789605,2558.8,2558.2,0.23488203]
[1646753539976,0.768,2558.8,2558.2,0.23488203]
[1646753540178,0.97782,2558.5,2558.2,0.23488203]
[1646753541179,0.97782,2558.5,2558.2,0.2402089]
[1646753541979,0.97782,2558.5,2558.2,0.23488203]
[1646753542214,1.0,2558.4,2558.2,0.23784445]
[1646753542416,1.3887,2558.4,2558.2,0.23784445]
[1646753542914,1.0,2558.4,2558.2,0.23784445]
[1646753543119,1.0,2558.4,2558.2,0.23488203]
[1646753543518,1.0,2558.4,2558.2,0.23784451]
[1646753544318,1.57929092,2558.4,2558.2,0.23488203]
[1646753544717,1.57929092,2558.4,2558.0,0.4663508]
[1646753544718,1.57929092,2558.4,2558.0,0.1715172]
[1646753544919,1.95608,2558.3,2558.0,0.1715172]
[1646753545319,2.64478,2558.3,2558.0,0.1715172]
[1646753545723,3.64478,2558.3,2558.0,0.1715172]
[1646753545966,1.9564,2558.2,2558.0,0.1715172]
[1646753546166,3.4016,2558.2,2558.0,0.1715172]
[1646753546367,1.36685,2558.1,2557.9,0.02635706]
[1646753546570,0.97816,2558.0,2557.9,0.02635706]
[1646753546768,4.77816,2558.0,2557.9,0.02635706]
[1646753546968,5.77805605,2558.0,2557.9,0.02635706]
[1646753547167,3.27805605,2558.0,2557.9,0.02635706]
[1646753547371,3.27805605,2558.0,2557.5,0.0192872]
[1646753547372,4.5,2557.7,2557.5,0.0192872]
[1646753547572,12.2887,2557.3,2556.9,0.01979826]
[1646753547771,12.2887,2557.3,2556.4,0.04216502]
[1646753547772,12.2887,2557.0,2556.3,0.0176247]
[1646753547970,0.01298822,2556.5,2556.2,0.01570104]
[1646753548169,0.01298822,2556.5,2556.2,0.02179464]
[1646753548769,2.46789605,2556.7,2556.2,0.02179464]
[1646753548770,1.3,2556.7,2556.2,0.02179464]
[1646753549171,1.28093038,2556.8,2556.2,0.02179464]
[1646753549371,8.5,2556.7,2556.2,0.0121872]
[1646753549624,8.5,2556.7,2556.2,0.01751995]
[1646753549625,0.99989605,2556.4,2556.2,0.01751995]
[1646753549818,0.97871,2556.3,2556.2,0.01751995]
[1646753550218,0.16188406,2556.5,2556.2,0.03538643]
[1646753550219,1.46188406,2556.5,2556.2,0.03538643]
[1646753550417,0.46188406,2556.5,2556.2,0.03538643]
[1646753550618,0.3,2556.5,2556.2,0.03538643]
[1646753550817,0.3,2556.5,2555.7,0.94832383]
[1646753551022,2.00224643,2556.8,2555.7,0.94832383]
[1646753551023,1.00224643,2556.8,2555.7,0.94832383]
[1646753551221,1.00224643,2556.8,2555.7,0.69832383]
[1646753551222,0.30235038,2556.8,2555.7,0.69832383]
[1646753551421,0.30235038,2556.8,2555.7,1.08952383]
[1646753551636,0.30235038,2556.8,2556.2,1.1409299]
[1646753551821,0.30235038,2556.8,2555.8,0.00096]
[1646753552024,0.00235038,2556.8,2555.8,0.00096]
[1646753552223,1.00224643,2556.8,2555.7,0.3912]
[1646753552721,0.39105038,2556.8,2555.7,0.3412]
[1646753552923,1.39094643,2556.8,2556.0,1.1957022]
[1646753553124,2.95924643,2556.8,2556.4,0.94640183]
[1646753553369,2.95924643,2556.8,2555.7,0.3412]
[1646753553370,2.25935038,2556.8,2555.7,0.3412]
[1646753553573,3.25935038,2556.8,2555.7,0.3412]
[1646753553768,2.25935038,2556.8,2555.7,0.3412]
[1646753553970,0.468,2556.9,2555.7,1.0299]
[1646753554169,0.3,2557.0,2555.7,0.3412]
[1646753554369,0.97842,2557.1,2556.0,0.00533319]
[1646753554771,1.36712,2557.1,2556.0,0.00533319]
[1646753554968,0.97842,2557.1,2556.0,0.00533319]
[1646753555171,0.97856,2556.9,2555.8,0.00096]
[1646753555373,0.97863,2556.6,2555.7,0.3412]
[1646753555572,0.97863,2556.6,2556.0,0.02666666]
[1646753555772,1.27863,2556.6,2556.0,0.02666666]
[1646753555972,0.3,2556.6,2556.0,0.02666666]
[1646753556176,3.34584605,2556.8,2556.0,0.02666666]
[1646753556177,0.99989605,2556.8,2556.1,1.08915997]
[1646753556374,8.1229847,2557.5,2556.2,3.5]
[1646753556375,0.97836,2557.2,2556.2,3.5]
[1646753556572,0.97836,2557.2,2556.2,0.00096]
[1646753556771,0.97836,2557.2,2556.1,1.08915997]
[1646753557421,0.97848,2556.9,2556.1,1.08915997]
[1646753557620,0.97848,2556.9,2556.0,0.00096]
[1646753557621,1.44648,2556.9,2556.0,0.00096]
[1646753557921,0.3887,2556.8,2556.1,0.02133273]
[1646753558120,1.8567,2556.7,2556.1,0.02133273]
[1646753558320,2.1567,2556.7,2556.1,0.02133273]
[1646753558520,0.97861,2556.6,2556.1,0.02133273]
[1646753558722,0.97861,2556.6,2555.7,0.3412]
[1646753559522,5.19163796,2556.7,2556.6,0.72560835]
[1646753559720,4.89163796,2556.7,2556.6,0.72560835]
[1646753559919,3.89174191,2556.7,2556.6,0.72560835]
[1646753560521,1.768,2556.7,2556.6,0.72560835]
[1646753560720,0.768,2556.7,2556.6,0.72560835]
[1646753562869,8.268,2556.7,2556.6,0.72560835]
[1646753563270,9.268,2556.7,2556.6,0.72560835]
[1646753563472,8.8,2556.7,2556.6,0.72560835]
[1646753563671,7.5,2556.7,2556.6,0.72560835]
[1646753564069,8.49989605,2556.7,2556.6,0.72560835]
[1646753564470,7.53059467,2556.7,2556.6,0.72560835]
[1646753569268,8.83059467,2556.7,2556.6,0.72560835]
[1646753569671,8.83059467,2556.7,2556.0,0.00584325]
[1646753569672,5.3887,2556.6,2556.0,0.00096]
[1646753569873,1.83546,2556.5,2555.8,0.00096]
[1646753570075,2.13546,2556.5,2556.1,0.0196328]
[1646753570275,1.95751,2556.4,2556.1,0.0196328]
[1646753570473,4.8938084,2556.4,2556.1,0.0196328]
[1646753570673,5.53965961,2556.4,2556.1,0.0196328]
[1646753570873,5.53965961,2556.4,2555.4,0.90737085]
[1646753570874,0.97875,2556.2,2555.4,0.90737085]
[1646753571176,15.868,2556.1,2555.7,0.36064714]
[1646753571375,15.868,2556.1,2555.7,0.02430848]
[1646753571376,28.2887,2556.0,2555.7,0.02430848]
[1646753571580,13.7359004,2555.9,2555.7,0.02430848]
[1646753571773,0.3887,2555.8,2555.3,0.0322387]
[1646753571974,3.79424,2555.7,2555.3,0.0322387]
[1646753572219,6.77333605,2555.7,2555.3,0.0322387]
[1646753572418,1.95836,2555.6,2555.3,0.0322387]
[1646753572620,3.79426,2555.6,2555.3,0.0322387]
[1646753572821,0.3887,2555.5,2555.3,0.0322387]
[1646753573020,0.8567,2555.5,2555.3,0.0322387]
[1646753573221,0.88729467,2555.5,2555.3,0.0322387]
[1646753573424,0.99989605,2555.4,2555.3,0.0322387]
[1646753573622,0.99989605,2555.4,2555.3,0.02050076]
[1646753573623,1.46789605,2555.4,2555.3,0.02050076]
[1646753573823,1.76789605,2555.4,2555.3,0.02050076]
[1646753574129,4.0,2555.2,2555.1,0.0514125]
[1646753574326,1.768,2555.2,2554.8,0.0243426]
[1646753574534,4.0,2554.9,2554.7,3.54275426]
[1646753574724,4.0,2554.9,2554.5,0.02069808]
[1646753574726,3.5,2554.7,2554.5,0.02069808]
[1646753574924,0.97525816,2554.8,2554.5,0.02069808]
[1646753575123,5.7319,2554.7,2554.5,0.02069808]
[1646753575326,3.3567,2554.6,2554.3,18.57805788]
[1646753575524,0.01218075,2554.5,2554.3,18.57805788]
[1646753575724,0.8567,2554.6,2554.3,18.57805788]
[1646753575725,0.468,2554.4,2554.3,18.57805788]
[1646753576183,0.468,2554.4,2554.3,18.47805788]
[1646753576386,0.468,2554.4,2554.3,19.67710691]
[1646753576387,0.03059467,2554.4,2554.3,19.67710691]
[1646753577384,0.03059467,2554.4,2554.3,19.62710691]
[1646753578788,9.467e-05,2554.4,2554.3,20.01580691]
[1646753578989,9.0,2554.9,2554.4,5.0008]
[1646753579192,9.0,2554.9,2554.4,0.0008]
[1646753579393,7.29522811,2554.9,2554.4,0.0008]
[1646753580321,7.59522811,2554.9,2554.4,0.0008]
[1646753580521,7.29522811,2554.9,2554.4,0.0008]
[1646753580716,7.59522811,2554.9,2554.4,0.0008]
[1646753580917,7.59522811,2554.9,2554.5,0.00513083]
[1646753581722,0.97933,2554.8,2554.4,0.0008]
[1646753582124,0.97933,2554.8,2554.6,0.00513078]
[1646753582525,0.97933,2554.8,2554.3,18.32628866]
[1646753582725,1.36803,2554.8,2554.3,18.32628866]
[1646753582926,0.3887,2554.6,2554.3,18.32628866]
[1646753583124,1.36831,2554.5,2554.3,18.32628866]
[1646753583366,2.83620605,2554.5,2554.3,18.32628866]
[1646753584071,1.44761,2554.5,2554.3,18.32628866]
[1646753584672,0.468,2554.5,2554.3,18.32628866]
[1646753586075,15.0159459,2554.5,2554.3,18.32628866]
[1646753586277,13.87938605,2554.4,2554.3,18.32628866]
[1646753586475,14.34738605,2554.4,2554.3,18.32628866]
[1646753586979,14.34738605,2554.4,2554.3,18.33127454]
[1646753586980,15.34738605,2554.4,2554.3,18.33127454]
[1646753587818,15.34738605,2554.4,2554.3,18.32628866]
[1646753588020,15.34738605,2554.4,2554.3,12.44737866]
[1646753589021,16.34738605,2554.4,2554.3,12.44737866]
[1646753589223,4.44738605,2554.4,2554.3,12.44737866]
[1646753589420,3.44749,2554.4,2554.3,12.44737866]
[1646753589628,3.44738605,2554.4,2554.3,12.44737866]
[1646753589822,2.44738605,2554.4,2554.3,12.44737866]
[1646753590025,1.44749,2554.4,2554.3,12.44737866]
[1646753590229,0.97949,2554.4,2554.3,12.44737866]
[1646753590425,1.0,2554.5,2554.3,12.44737866]
[1646753590624,1.95879,2554.8,2554.3,12.44737866]
[1646753590625,0.97939,2554.6,2554.3,12.44737866]
[1646753590869,7.29522811,2554.9,2554.3,12.44737866]
[1646753591682,7.29522811,2554.9,2554.3,15.94737866]
[1646753591874,7.29522811,2554.9,2554.5,0.00530919]
[1646753592474,7.29522811,2554.9,2554.4,0.97906]
[1646753592675,7.29522811,2554.9,2554.4,5.16776]
[1646753592975,7.29522811,2554.9,2554.5,2.96898028]
[1646753593275,7.29522811,2554.9,2554.6,6.46568685]
[1646753593474,7.29522811,2554.9,2554.7,2.80028556]
[1646753593677,7.29522811,2554.9,2554.7,1.20217871]
[1646753594723,7.29522811,2554.9,2554.8,1.59797455]
[1646753594929,7.29522811,2554.9,2554.7,1.20217871]
[1646753595122,5.64381635,2554.9,2554.7,1.20217871]
[1646753595427,0.3,2555.0,2554.8,5.6887]
[1646753595627,0.00510667,2555.6,2555.0,0.3887]
[1646753596223,0.156656,2555.4,2555.1,1.36744]
[1646753596424,0.156656,2555.4,2555.2,0.86523796]
[1646753596625,0.0051071,2555.6,2555.2,0.86523796]
[1646753597427,12.87877,2556.2,2555.2,0.86523796]
[1646753597428,0.3,2556.0,2555.2,0.86523796]
[1646753597624,0.97885,2556.0,2555.2,0.86523796]
[1646753597822,0.00510719,2555.6,2555.2,0.86523796]
[1646753598223,0.00510719,2555.6,2555.1,0.3]
[1646753598475,1.9581,2555.7,2555.1,0.3]
[1646753598670,1.9581,2555.7,2554.9,0.3]
[1646753598872,0.00496238,2555.6,2554.7,0.00096]
[1646753599073,4.95198238,2555.6,2554.5,0.00592453]
[1646753599273,0.3,2555.0,2554.5,0.00592453]
[1646753599473,2.3474,2555.0,2554.5,0.00496453]
[1646753599877,13.8887,2554.8,2554.5,0.00496453]
[1646753600089,27.0097,2554.8,2554.3,12.44737866]
[1646753600278,0.468,2554.7,2554.3,12.44737866]
[1646753600478,0.17442066,2554.6,2554.3,12.44737866]
[1646753600677,2.93889,2554.7,2554.3,12.44737866]
[1646753601078,0.97945,2554.5,2554.3,12.44737866]
[1646753601280,2.01018756,2554.5,2554.3,12.44737866]
[1646753601677,2.39888756,2554.5,2554.3,12.44737866]
[1646753602134,0.97945,2554.5,2554.3,12.44737866]
[1646753602524,0.97945,2554.5,2554.3,12.45237401]
[1646753603426,0.97945,2554.5,2554.3,12.44737866]
[1646753603726,0.97945,2554.5,2554.3,12.45269404]
[1646753604828,0.97945,2554.5,2554.3,12.44737866]
[1646753605028,0.97945,2554.5,2554.3,12.45048146]
[1646753605880,0.97945,2554.5,2554.3,12.44737866]
[1646753606076,0.97945,2554.5,2554.3,12.45048146]
[1646753606275,2.36804605,2554.5,2554.3,12.45048146]
[1646753606675,0.97945,2554.5,2554.3,12.45048146]
[1646753607077,0.97945,2554.5,2554.3,12.44737866]
[1646753607578,0.97945,2554.5,2554.3,12.45269702]
[1646753608177,2.93889,2554.7,2554.3,12.45269702]
[1646753608376,14.47939,2554.8,2554.3,12.45269702]
[1646753608377,13.5,2554.8,2554.3,12.45269702]
[1646753609634,13.5,2554.8,2554.3,12.44737866]
[1646753609826,13.5,2554.8,2554.4,0.00531818]
[1646753611028,13.5,2554.8,2554.5,0.00515858]
[1646753612328,13.5,2554.8,2554.7,1.10923087]
[1646753612728,13.5,2554.8,2554.5,0.00482789]
[1646753613128,13.5,2554.8,2554.3,12.44737866]
[1646753613565,13.5,2554.8,2554.6,0.00482777]
[1646753614670,13.5,2554.8,2554.6,0.00482804]
[1646753615476,17.0,2554.8,2554.6,0.00482804]
[1646753615672,18.468,2554.8,2554.6,0.00482804]
[1646753615873,14.968,2554.8,2554.3,12.44737866]
[1646753616074,14.968,2554.8,2554.6,0.00486351]
[1646753616475,13.968,2554.8,2554.6,0.00486351]
[1646753616674,13.5,2554.8,2554.3,12.44737866]
[1646753616875,13.5,2554.8,2554.3,13.43671625]
[1646753617127,13.5,2554.8,2554.6,0.00486351]
[1646753617916,13.5,2554.8,2554.3,13.43671625]
[1646753618124,13.5,2554.8,2554.4,1.59864358]
[1646753618321,13.5,2554.8,2554.7,0.98823045]
[1646753618723,13.5,2554.8,2554.7,2.58683181]
[1646753619125,11.79489001,2554.8,2554.7,2.58683181]
[1646753620226,11.79489001,2554.8,2554.7,1.59860136]
[1646753621772,11.79489001,2554.8,2554.6,0.00517862]
[1646753622772,11.79489001,2554.8,2554.4,1.00952248]
[1646753622974,11.79489001,2554.8,2554.6,0.00532191]
[1646753623577,11.79489001,2554.8,2554.7,1.5985959]
[1646753623777,11.79489001,2554.8,2554.6,0.00532191]
[1646753623978,11.79489001,2554.8,2554.3,12.44737866]
[1646753624178,11.79489001,2554.8,2554.4,1.59871633]
[1646753624376,11.79489001,2554.8,2554.6,0.00532191]
[1646753624822,13.16293001,2554.8,2554.6,0.00532191]
[1646753625021,1.95895,2554.7,2554.6,0.00532191]
[1646753625924,12.77423001,2554.8,2554.6,0.00532191]
[1646753626123,11.79489001,2554.8,2554.6,0.00532191]
[1646753626323,11.79489001,2554.8,2554.3,12.44737866]
[1646753626525,11.79489001,2554.8,2554.4,1.59867734]
[1646753626727,11.79489001,2554.8,2554.5,0.00488042]
[1646753627526,11.79489001,2554.8,2554.4,0.99241729]